fUSD/lending_fUSD_20241127
["ID","MTS","AMOUNT","RATE_DAILY","PERIOD"]
[343597093,1732741855393,-500.0,9.999e-05,2]
[343597094,1732741855403,-500.0,9.999e-05,2]
[343597095,1732741855414,-500.0,9.999e-05,2]
[343597096,1732741855424,-500.0,9.999e-05,2]
[343597097,1732741855434,-500.0,9.999e-05,2]
[343597098,1732741855445,-500.0,9.999e-05,2]
[343597099,1732741855461,-500.0,9.999e-05,2]
[343597100,1732741855471,-557.54,9.999e-05,2]
[343597101,1732741855482,-500.0,9.999e-05,2]
[343597102,1732741855494,-500.0,9.999e-05,2]
[343597103,1732741855504,-614.96,9.999e-05,2]
[343597104,1732741855514,-500.0,9.999e-05,2]
[343597105,1732741855524,-500.0,9.999e-05,2]
[343597106,1732741855536,-500.0,9.999e-05,2]
[343597107,1732741855546,-500.0,9.999e-05,2]
[343597108,1732741855556,-500.0,9.999e-05,2]
[343597109,1732741855566,-500.0,9.999e-05,2]
[343597110,1732741855575,-500.0,9.999e-05,2]
[343597111,1732741855585,-625.65,9.999e-05,2]
[343597112,1732741855595,-500.0,9.999e-05,2]
[343597113,1732741855604,-468.23,9.999e-05,2]
[343597114,1732741855614,-346.01,9.999e-05,2]
[343597115,1732741855624,-500.0,9.999e-05,2]
[343597116,1732741855634,-500.0,9.999e-05,2]
[343597117,1732741855644,-500.0,9.999e-05,2]
[343597118,1732741855654,-500.0,9.999e-05,2]
[343597119,1732741855663,-293.69,9.999e-05,2]
[343597120,1732741855673,-500.0,9.999e-05,2]
[343597121,1732741855683,-500.0,9.999e-05,2]
[343597122,1732741855693,-323.56722814,9.999e-05,2]
[343597123,1732741855705,-194.60761602,9.999e-05,2]
[343597124,1732741855715,-500.0,9.999e-05,2]
[343597125,1732741855724,-500.0,9.999e-05,2]
[343597126,1732741855734,-500.0,9.999e-05,2]
[343597127,1732741855743,-500.0,9.999e-05,2]
[343597128,1732741855752,-500.0,9.999e-05,2]
[343597129,1732741855762,-500.0,9.999e-05,2]
[343597130,1732741855772,-500.0,9.999e-05,2]
[343597131,1732741855782,-500.0,9.999e-05,2]
[343597132,1732741855791,-620.46,9.999e-05,2]
[343597133,1732741855801,-230.71,9.999e-05,2]
[343597134,1732741855811,-591.32,9.999e-05,2]
[343597135,1732741855820,-500.0,9.999e-05,2]
[343597136,1732741855830,-500.0,9.999e-05,2]
[343597137,1732741855840,-500.0,9.999e-05,2]
[343597138,1732741855850,-500.0,9.999e-05,2]
[343597139,1732741855860,-500.0,9.999e-05,2]
[343597140,1732741855869,-301.7,9.999e-05,2]
[343597141,1732741855879,-500.0,9.999e-05,2]
[343597142,1732741855888,-500.0,9.999e-05,2]
[343597143,1732741855898,-500.0,9.999e-05,2]
[343597144,1732741855908,-500.0,9.999e-05,2]
[343597145,1732741855918,-500.0,9.999e-05,2]
[343597146,1732741855927,-500.0,9.999e-05,2]
[343597147,1732741855938,-500.0,9.999e-05,2]
[343597148,1732741855948,-500.0,9.999e-05,2]
[343597149,1732741855959,-500.0,9.999e-05,2]
[343597150,1732741855969,-500.0,9.999e-05,2]
[343597151,1732741855979,-500.0,9.999e-05,2]
[343597152,1732741855989,-500.0,9.999e-05,2]
[343597153,1732741855998,-500.0,9.999e-05,2]
[343597154,1732741856009,-218.88345492,9.999e-05,2]
[343597155,1732741856019,-500.0,9.999e-05,2]
[343597156,1732741856028,-500.0,9.999e-05,2]
[343597157,1732741856038,-500.0,9.999e-05,2]
[343597158,1732741856083,-500.0,9.999e-05,2]
[343597159,1732741856094,-500.0,9.999e-05,2]
[343597160,1732741856102,-500.0,9.999e-05,2]
[343597161,1732741856112,-500.0,9.999e-05,2]
[343597162,1732741856121,-500.0,9.999e-05,2]
[343597163,1732741856131,-500.0,9.999e-05,2]
[343597164,1732741856140,-532.28,9.999e-05,2]
[343597165,1732741856150,-500.0,9.999e-05,2]
[343597166,1732741856161,-648.22,9.999e-05,2]
[343597167,1732741856171,-500.0,9.999e-05,2]
[343597168,1732741856181,-500.0,9.999e-05,2]
[343597169,1732741856191,-221.49,9.999e-05,2]
[343597170,1732741856201,-254.8,9.999e-05,2]
[343597171,1732741856213,-500.0,9.999e-05,2]
[343597172,1732741856222,-500.0,9.999e-05,2]
[343597173,1732741856231,-500.0,9.999e-05,2]
[343597174,1732741856240,-500.0,9.999e-05,2]
[343597175,1732741856250,-500.0,9.999e-05,2]
[343597176,1732741856259,-500.0,9.999e-05,2]
[343597177,1732741856269,-500.0,9.999e-05,2]
[343597178,1732741856279,-500.0,9.999e-05,2]
[343597179,1732741856288,-500.0,9.999e-05,2]
[343597180,1732741856297,-500.0,9.999e-05,2]
[343597181,1732741856307,-500.0,9.999e-05,2]
[343597182,1732741856317,-180.55,9.999e-05,2]
[343597183,1732741856326,-500.0,9.999e-05,2]
[343597184,1732741856336,-404.1,9.999e-05,2]
[343597185,1732741856346,-500.0,9.999e-05,2]
[343597186,1732741856357,-500.0,9.999e-05,2]
[343597187,1732741856367,-500.0,9.999e-05,2]
[343597188,1732741856376,-500.0,9.999e-05,2]
[343597189,1732741856387,-500.0,9.999e-05,2]
[343597190,1732741856397,-480.7,9.999e-05,2]
[343597191,1732741856407,-500.0,9.999e-05,2]
[343597192,1732741856416,-500.0,9.999e-05,2]
[343597193,1732741856427,-500.0,9.999e-05,2]
[343597194,1732741856437,-500.0,9.999e-05,2]
[343597195,1732741856447,-500.0,9.999e-05,2]
[343597196,1732741856460,-365.68793334,9.999e-05,2]
[343597197,1732741856470,-591.10079257,9.999e-05,2]
[343597198,1732741856480,-500.0,9.999e-05,2]
[343597199,1732741856490,-500.0,9.999e-05,2]
[343597200,1732741856758,-189.69,9.999e-05,2]
[343597201,1732741856776,-2347.45,9.999e-05,2]
[343597202,1732741856788,-2347.45,9.999e-05,2]
[343597203,1732741856799,-2347.45,9.999e-05,2]
[343597204,1732741856810,-500.0,9.999e-05,2]
[343597205,1732741856819,-2347.45,9.999e-05,2]
[343597206,1732741856829,-2347.45,9.999e-05,2]
[343597207,1732741856840,-2347.45,9.999e-05,2]
[343597208,1732741856851,-2347.45,9.999e-05,2]
[343597209,1732741856862,-2347.45,9.999e-05,2]
[343597210,1732741856872,-2347.45,9.999e-05,2]
[343597211,1732741856884,-2347.45,9.999e-05,2]
[343597212,1732741856894,-2347.45,9.999e-05,2]
[343597213,1732741856904,-2347.45,9.999e-05,2]
[343597214,1732741856915,-2347.45,9.999e-05,2]
[343597215,1732741856925,-373.56,9.999e-05,2]
[343597216,1732741856935,-2347.45,9.999e-05,2]
[343597217,1732741856945,-2347.45,9.999e-05,2]
[343597218,1732741856955,-2347.45,9.999e-05,2]
[343597219,1732741856965,-2347.45,9.999e-05,2]
[343597220,1732741856974,-500.0,9.999e-05,2]
[343597221,1732741856984,-2347.45,9.999e-05,2]
[343597222,1732741856994,-500.0,9.999e-05,2]
[343597223,1732741857004,-500.0,9.999e-05,2]
[343597224,1732741857014,-2347.45,9.999e-05,2]
[343597225,1732741857023,-500.0,9.999e-05,2]
[343597226,1732741857033,-2347.45,9.999e-05,2]
[343597227,1732741857042,-2347.55999999,9.999e-05,2]
[343597228,1732741857052,-500.0,9.999e-05,2]
[343597229,1732741857062,-500.0,9.999e-05,2]
[343597230,1732741857072,-500.0,9.999e-05,2]
[343597231,1732741857082,-260.34,9.999e-05,2]
[343597232,1732741857092,-500.0,9.999e-05,2]
[343597233,1732741857102,-500.0,9.999e-05,2]
[343597234,1732741857111,-431.88,9.999e-05,2]
[343597235,1732741857121,-593.62,9.999e-05,2]
[343597236,1732741857131,-500.0,9.999e-05,2]
[343597237,1732741857140,-500.0,9.999e-05,2]
[343597238,1732741857149,-525.21,9.999e-05,2]
[343597239,1732741857159,-500.0,9.999e-05,2]
[343597240,1732741857169,-500.0,9.999e-05,2]
[343597241,1732741857179,-592.99,9.999e-05,2]
[343597242,1732741857189,-500.0,9.999e-05,2]
[343597243,1732741857199,-500.0,9.999e-05,2]
[343597244,1732741857210,-323.92,9.999e-05,2]
[343597245,1732741857220,-507.43,9.999e-05,2]
[343597246,1732741857230,-376.76,9.999e-05,2]
[343597247,1732741857240,-500.0,9.999e-05,2]
[343597248,1732741857250,-500.0,9.999e-05,2]
[343597249,1732741857259,-500.0,9.999e-05,2]
[343597250,1732741857269,-500.0,9.999e-05,2]
[343597251,1732741857279,-520.68,9.999e-05,2]
[343597252,1732741857288,-500.0,9.999e-05,2]
[343597253,1732741857299,-500.0,9.999e-05,2]
[343597254,1732741857309,-500.0,9.999e-05,2]
[343597255,1732741857318,-500.0,9.999e-05,2]
[343597256,1732741857328,-500.0,9.999e-05,2]
[343597257,1732741857338,-500.0,9.999e-05,2]
[343597258,1732741857349,-500.0,9.999e-05,2]
[343597259,1732741857359,-518.14,9.999e-05,2]
[343597260,1732741857369,-500.0,9.999e-05,2]
[343597261,1732741857379,-500.0,9.999e-05,2]
[343597262,1732741857388,-500.0,9.999e-05,2]
[343597263,1732741857398,-500.0,9.999e-05,2]
[343597264,1732741857408,-500.0,9.999e-05,2]
[343597265,1732741857417,-500.0,9.999e-05,2]
[343597266,1732741857427,-500.0,9.999e-05,2]
[343597267,1732741857437,-500.0,9.999e-05,2]
[343597268,1732741857446,-438.94,9.999e-05,2]
[343597269,1732741857462,-500.0,9.999e-05,2]
[343597270,1732741857472,-500.0,9.999e-05,2]
[343597271,1732741857481,-500.0,9.999e-05,2]
[343597272,1732741857492,-500.0,9.999e-05,2]
[343597273,1732741857502,-500.0,9.999e-05,2]
[343597274,1732741857512,-500.0,9.999e-05,2]
[343597275,1732741857522,-500.0,9.999e-05,2]
[343597276,1732741857532,-500.0,9.999e-05,2]
[343597277,1732741857543,-500.0,9.999e-05,2]
[343597278,1732741857552,-500.0,9.999e-05,2]
[343597279,1732741857562,-419.04,9.999e-05,2]
[343597280,1732741857571,-407.67,9.999e-05,2]
[343597281,1732741857581,-500.0,9.999e-05,2]
[343597282,1732741857591,-500.0,9.999e-05,2]
[343597283,1732741857601,-160.05,9.999e-05,2]
[343597284,1732741857610,-500.0,9.999e-05,2]
[343597285,1732741857620,-568.95,9.999e-05,2]
[343597286,1732741857630,-500.0,9.999e-05,2]
[343597287,1732741857640,-500.0,9.999e-05,2]
[343597288,1732741857649,-270.16,9.999e-05,2]
[343597289,1732741857659,-500.0,9.999e-05,2]
[343597290,1732741857669,-500.0,9.999e-05,2]
[343597291,1732741857680,-500.0,9.999e-05,2]
[343597292,1732741857690,-500.0,9.999e-05,2]
[343597293,1732741857699,-500.0,9.999e-05,2]
[343597294,1732741857712,-500.0,9.999e-05,2]
[343597295,1732741857722,-192.31,9.999e-05,2]
[343597296,1732741857731,-500.0,9.999e-05,2]
[343597297,1732741857740,-500.0,9.999e-05,2]
[343597298,1732741857750,-500.0,9.999e-05,2]
[343597299,1732741857759,-500.0,9.999e-05,2]
[343597300,1732741857770,-307.12,9.999e-05,2]
[343597301,1732741857780,-500.0,9.999e-05,2]
[343597302,1732741857790,-253.76361244,9.999e-05,2]
[343597303,1732741857801,-242.56,9.999e-05,2]
[343597304,1732741857812,-500.0,9.999e-05,2]
[343597305,1732741857821,-458.2153151,9.999e-05,2]
[343597306,1732741857830,-590.04,9.999e-05,2]
[343597307,1732741857839,-500.0,9.999e-05,2]
[343597308,1732741857849,-500.0,9.999e-05,2]
[343597309,1732741857858,-500.0,9.999e-05,2]
[343597310,1732741857868,-500.0,9.999e-05,2]
[343597311,1732741857879,-226.11,9.999e-05,2]
[343597312,1732741857889,-500.0,9.999e-05,2]
[343597313,1732741857898,-500.0,9.999e-05,2]
[343597314,1732741857908,-500.0,9.999e-05,2]
[343597315,1732741857919,-500.0,9.999e-05,2]
[343597316,1732741857928,-500.0,9.999e-05,2]
[343597317,1732741857937,-500.0,9.999e-05,2]
[343597318,1732741857947,-500.0,9.999e-05,2]
[343597319,1732741857958,-500.0,9.999e-05,2]
[343597320,1732741857968,-500.0,9.999e-05,2]
[343597321,1732741857978,-500.0,9.999e-05,2]
[343597322,1732741857988,-1049.51221743,9.999e-05,3]
[343597323,1732741857998,-1049.51221743,9.999e-05,3]
[343597324,1732741858008,-500.0,9.999e-05,2]
[343597325,1732741858018,-1049.51221743,9.999e-05,3]
[343597326,1732741858028,-1049.51221743,9.999e-05,3]
[343597327,1732741858037,-1049.51221743,9.999e-05,3]
[343597328,1732741858047,-1049.51221743,9.999e-05,3]
[343597329,1732741858058,-1049.51221744,9.999e-05,3]
[343597330,1732741858068,-1049.51221743,9.999e-05,3]
[343597331,1732741858078,-1049.51221743,9.999e-05,3]
[343597332,1732741858088,-350.11,9.999e-05,2]
[343597333,1732741858097,-500.0,9.999e-05,2]
[343597334,1732741858107,-500.0,9.999e-05,2]
[343597335,1732741858116,-500.0,9.999e-05,2]
[343597336,1732741858126,-500.0,9.999e-05,2]
[343597337,1732741858136,-500.0,9.999e-05,2]
[343597338,1732741858147,-500.0,9.999e-05,2]
[343597339,1732741858157,-500.0,9.999e-05,2]
[343597340,1732741858167,-500.0,9.999e-05,2]
[343597341,1732741858176,-458.8,9.999e-05,2]
[343597342,1732741858185,-500.0,9.999e-05,2]
[343597343,1732741858195,-500.0,9.999e-05,2]
[343597344,1732741858207,-500.0,9.999e-05,2]
[343597345,1732741858216,-244.2,9.999e-05,2]
[343597346,1732741858227,-500.0,9.999e-05,2]
[343597347,1732741858236,-500.0,9.999e-05,2]
[343597348,1732741858246,-500.0,9.999e-05,2]
[343597349,1732741858256,-500.0,9.999e-05,2]
[343597350,1732741858266,-217.58254419,9.999e-05,2]
[343597351,1732741858276,-461.3312851,9.999e-05,2]
[343597352,1732741858286,-430.87511664,9.999e-05,2]
[343597353,1732741858296,-500.0,9.999e-05,2]
[343597354,1732741858308,-500.0,9.999e-05,2]
[343597355,1732741858318,-514.88,9.999e-05,2]
[343597356,1732741858328,-500.0,9.999e-05,2]
[343597357,1732741858337,-240.64,9.999e-05,2]
[343597358,1732741858347,-561.58,9.999e-05,2]
[343597359,1732741858357,-494.82,9.999e-05,2]
[343597360,1732741858367,-500.0,9.999e-05,2]
[343597361,1732741858377,-523.02,9.999e-05,2]
[343597362,1732741858387,-364.49642581,9.999e-05,2]
[343597363,1732741858397,-500.0,9.999e-05,2]
[343597364,1732741858407,-500.0,9.999e-05,2]
[343597365,1732741858417,-464.25,9.999e-05,2]
[343597366,1732741858427,-157.81137101,9.999e-05,2]
[343597367,1732741858437,-500.0,9.999e-05,2]
[343597368,1732741858447,-500.0,9.999e-05,2]
[343597369,1732741858462,-588.70044655,9.999e-05,2]
[343597370,1732741858475,-1312210.32513462,0.0001,2]
[343597371,1732741858485,-22377.09096745,0.0001,2]
[343597372,1732741858495,-150.0,0.0001,2]
[343597373,1732741858505,-203.976,0.0001,2]
[343597374,1732741858515,-206.446,0.0001,2]
[343597375,1732741858525,-565.0,0.0001,2]
[343597376,1732741858536,-1259.0,0.0001,2]
[343597377,1732741858547,-630.0,0.0001,2]
[343597378,1732741858556,-1999.0,0.0001,2]
[343597379,1732741858565,-150.0,0.0001,2]
[343597380,1732741858575,-562.0,0.0001,2]
[343597381,1732741858585,-1931.0,0.0001,2]
[343597382,1732741858595,-1263.0,0.0001,2]
[343597383,1732741858605,-3756.0,0.0001,2]
[343597384,1732741858614,-827.0,0.0001,2]
[343597385,1732741858624,-3522.0,0.0001,2]
[343597386,1732741858634,-534.0,0.0001,2]
[343597387,1732741858643,-978.0,0.0001,2]
[343597388,1732741858654,-1668.81094485,0.0001,2]
[343597389,1732741858663,-1668.81094479,0.0001,2]
[343597390,1732741858673,-1668.81094479,0.0001,2]
[343597391,1732741858682,-1668.81094479,0.0001,2]
[343597392,1732741858692,-1668.81094479,0.0001,2]
[343597393,1732741858702,-1668.81094479,0.0001,2]
[343597394,1732741858715,-1668.81094479,0.0001,2]
[343597395,1732741858725,-1668.81094479,0.0001,2]
[343597396,1732741858735,-1668.81094479,0.0001,2]
[343597397,1732741858745,-5953.0,0.0001,2]
[343597398,1732741858755,-258.422,0.0001,2]
[343597399,1732741858765,-184.084,0.0001,2]
[343597400,1732741858776,-1164.0,0.0001,2]
[343597401,1732741858792,-13688.0,0.0001,2]
[343597402,1732741858802,-1096.0,0.0001,2]
[343597403,1732741858812,-12364.0,0.0001,2]
[343597404,1732741858822,-52464.1466924,0.0001,2]
[343597405,1732741858831,-297802.96567943,0.0001,2]
[343597406,1732741859132,-1190364.79821922,0.0001,2]
[343597407,1732741859144,-457.959999,0.0001,2]
[343597408,1732741859158,-1199.54709239,0.0001,2]
[343597409,1732741859170,-1164.61700779,0.0001,2]
[343597410,1732741859182,-10955.54564714,0.0001,2]
[343597411,1732741859523,-382.14299621,9.994e-05,2]
[343597412,1732741859539,-117.85700379,9.994e-05,2]
[343597413,1732741859550,-132.19307136,9.998e-05,2]
[343597414,1732741859564,-367.80692864,9.998e-05,2]
[343597415,1732741859575,-326.62772865,0.0001,2]
[343597416,1732741859593,-46444.74791626,0.0001,2]
[343597417,1732741859623,-477.25802665,0.0001,2]
[343597418,1732741859637,-1658.69712355,0.0001,2]
[343597419,1732741859657,-1525.84258591,0.0001,2]
[343597420,1732741859677,-1930.94,0.0001,2]
[343597421,1732741859691,-50037.79856119,0.0001,2]
[343597422,1732741859718,-4776.4839,0.0001,2]
[343597423,1732741859731,-97572.40742018,0.0001,2]
[343597424,1732741859744,-4834.5498,0.0001,2]
[343597430,1732742794265,200.22,9.999e-05,7]
[343597431,1732742802954,2822.58,0.0001,10]
[343597432,1732742802978,7177.42,0.0001,10]
[343597451,1732743031970,-173.18,7.177e-05,2]
[343597452,1732743031980,-1916.87,8.219e-05,2]
[343597453,1732743031989,-150.0,8.605e-05,2]
[343597454,1732743031999,-153.5,8.981e-05,2]
[343597455,1732743032009,-3303.20112318,8.981e-05,2]
[343597456,1732743032018,-164.85,8.982e-05,2]
[343597457,1732743032027,-445.44,9.018e-05,2]
[343597458,1732743032036,-250.0,9.101e-05,2]
[343597459,1732743032045,-1000.0,9.156e-05,2]
[343597460,1732743032055,-3303.20112317,9.49e-05,2]
[343597461,1732743032064,-581.23,9.512e-05,2]
[343597462,1732743032079,-500.0,9.534e-05,2]
[343597463,1732743032088,-400.0,9.589e-05,2]
[343597464,1732743032102,-283.4324469,9.8e-05,2]
[343597465,1732743032111,-4682.3603,9.893e-05,2]
[343597466,1732743032121,-2500.0,9.899e-05,2]
[343597467,1732743032130,-3476.8943,9.9e-05,2]
[343597468,1732743032139,-500.0,9.973e-05,2]
[343597469,1732743032149,-1233.05833998,9.983e-05,2]
[343597470,1732743032158,-1233.05833998,9.987e-05,2]
[343597471,1732743032168,-1233.05833998,9.988e-05,2]
[343597472,1732743032181,-150.0,9.991e-05,2]
[343597473,1732743032190,-502.72,9.992e-05,2]
[343597474,1732743032199,-500.0,9.992e-05,2]
[343597475,1732743032209,-500.0,9.992e-05,2]
[343597476,1732743032219,-500.0,9.992e-05,2]
[343597477,1732743032231,-500.0,9.992e-05,2]
[343597478,1732743032241,-500.0,9.992e-05,2]
[343597479,1732743032251,-500.0,9.992e-05,2]
[343597480,1732743032260,-500.0,9.992e-05,2]
[343597481,1732743032270,-500.0,9.992e-05,2]
[343597482,1732743032279,-612.44,9.992e-05,2]
[343597483,1732743032289,-500.0,9.992e-05,2]
[343597484,1732743032298,-500.0,9.992e-05,2]
[343597485,1732743032308,-500.0,9.992e-05,2]
[343597486,1732743032321,-500.0,9.992e-05,2]
[343597487,1732743032331,-500.0,9.992e-05,2]
[343597488,1732743032341,-500.0,9.992e-05,2]
[343597489,1732743032350,-500.0,9.992e-05,2]
[343597490,1732743032360,-500.0,9.992e-05,2]
[343597491,1732743032369,-167.71,9.992e-05,2]
[343597492,1732743032379,-500.0,9.992e-05,2]
[343597493,1732743032388,-500.0,9.992e-05,2]
[343597495,1732743032398,-500.0,9.992e-05,2]
[343597497,1732743032408,-500.0,9.992e-05,2]
[343597499,1732743032418,-511.4,9.992e-05,2]
[343597501,1732743032427,-440.15388646,9.993e-05,2]
[343597503,1732743032437,-500.0,9.993e-05,2]
[343597505,1732743032447,-171.31564807,9.993e-05,2]
[343597507,1732743032457,-500.0,9.993e-05,2]
[343597508,1732743032468,-500.0,9.993e-05,2]
[343597509,1732743032477,-443.66,9.993e-05,2]
[343597510,1732743032487,-500.0,9.993e-05,2]
[343597512,1732743032496,-301.75863716,9.993e-05,2]
[343597513,1732743032505,-528.82364703,9.993e-05,2]
[343597515,1732743032515,-500.0,9.993e-05,2]
[343597517,1732743032524,-500.0,9.993e-05,2]
[343597518,1732743032534,-500.0,9.993e-05,2]
[343597520,1732743032543,-500.0,9.993e-05,2]
[343597522,1732743032552,-670.412,9.993e-05,2]
[343597524,1732743032563,-500.0,9.993e-05,2]
[343597526,1732743032575,-500.0,9.993e-05,2]
[343597528,1732743032584,-459.83,9.994e-05,2]
[343597530,1732743032594,-500.0,9.994e-05,2]
[343597532,1732743032603,-500.0,9.994e-05,2]
[343597534,1732743032613,-500.0,9.994e-05,2]
[343597536,1732743032623,-500.0,9.994e-05,2]
[343597538,1732743032632,-500.0,9.994e-05,2]
[343597540,1732743032641,-500.0,9.994e-05,2]
[343597542,1732743032651,-500.0,9.994e-05,2]
[343597544,1732743032661,-500.0,9.994e-05,2]
[343597546,1732743032670,-335.87,9.994e-05,2]
[343597548,1732743032680,-500.0,9.994e-05,2]
[343597550,1732743032689,-500.0,9.996e-05,2]
[343597552,1732743032699,-500.0,9.996e-05,2]
[343597554,1732743032708,-500.0,9.996e-05,2]
[343597556,1732743032718,-448.9,9.996e-05,2]
[343597558,1732743032728,-1233.05833998,9.997e-05,2]
[343597560,1732743032738,-1233.05833998,9.997e-05,2]
[343597562,1732743032748,-1233.05833998,9.998e-05,2]
[343597564,1732743032758,-150.0,9.998e-05,2]
[343597566,1732743032767,-150.0,9.998e-05,2]
[343597568,1732743032778,-150.0,9.998e-05,2]
[343597570,1732743032789,-150.0,9.998e-05,2]
[343597572,1732743032799,-150.0,9.998e-05,2]
[343597574,1732743032808,-150.0,9.998e-05,2]
[343597576,1732743032818,-150.0,9.998e-05,2]
[343597578,1732743032830,-150.0,9.998e-05,2]
[343597580,1732743032840,-150.0,9.998e-05,2]
[343597582,1732743032849,-150.0,9.998e-05,2]
[343597583,1732743032859,-150.0,9.998e-05,2]
[343597586,1732743032870,-150.0,9.998e-05,2]
[343597587,1732743032879,-500.0,9.998e-05,2]
[343597589,1732743032889,-500.0,9.998e-05,2]
[343597591,1732743032898,-500.0,9.998e-05,2]
[343597593,1732743032908,-500.0,9.998e-05,2]
[343597595,1732743032918,-500.0,9.998e-05,2]
[343597597,1732743032929,-500.0,9.998e-05,2]
[343597599,1732743032939,-500.0,9.998e-05,2]
[343597601,1732743032949,-500.0,9.998e-05,2]
[343597603,1732743032959,-500.0,9.998e-05,2]
[343597605,1732743032969,-13154.52713483,9.998e-05,2]
[343597614,1732743033047,-1286.4375576,9.998e-05,2]
[343597619,1732743033090,-4594.85721001,9.998e-05,2]
[343597623,1732743033113,-837.330003,9.998e-05,2]
[343597651,1732743037937,-500.0,9.973e-05,2]
[343597652,1732743037947,-451.86353659,9.998e-05,2]
[343597654,1732743037970,-33165.35528615,9.998e-05,2]
[343597655,1732743037980,-537.27,9.998e-05,2]
[343597656,1732743037989,-500.0,9.998e-05,2]
[343597657,1732743037999,-500.0,9.998e-05,2]
[343597658,1732743038009,-500.0,9.998e-05,2]
[343597659,1732743038018,-3303.20112317,9.998e-05,2]
[343597660,1732743038028,-500.0,9.998e-05,2]
[343597661,1732743038037,-583.69,9.998e-05,2]
[343597662,1732743038046,-500.0,9.998e-05,2]
[343597663,1732743038056,-500.0,9.998e-05,2]
[343597664,1732743038065,-1623.58247098,9.999e-05,2]
[343597665,1732743038077,-500.0,9.999e-05,2]
[343597666,1732743038086,-353.28,9.999e-05,2]
[343597667,1732743038095,-500.0,9.999e-05,2]
[343597668,1732743038105,-500.0,9.999e-05,2]
[343597669,1732743038115,-507.67233437,9.999e-05,2]
[343597670,1732743038124,-500.0,9.999e-05,2]
[343597671,1732743038133,-234.5,9.999e-05,2]
[343597672,1732743038143,-500.0,9.999e-05,2]
[343597673,1732743038153,-500.0,9.999e-05,2]
[343597674,1732743038163,-343.55,9.999e-05,2]
[343597675,1732743038172,-500.0,9.999e-05,2]
[343597676,1732743038182,-502.58104224,9.999e-05,2]
[343597677,1732743038192,-571.32,9.999e-05,2]
[343597678,1732743038201,-500.0,9.999e-05,2]
[343597679,1732743038211,-582.59,9.999e-05,2]
[343597680,1732743038221,-500.0,9.999e-05,2]
[343597681,1732743038231,-355.49,9.999e-05,2]
[343597682,1732743038240,-361.01092267,9.999e-05,2]
[343597683,1732743038250,-500.0,9.999e-05,2]
[343597684,1732743038259,-500.0,9.999e-05,2]
[343597685,1732743038269,-500.0,9.999e-05,2]
[343597686,1732743038279,-500.0,9.999e-05,2]
[343597687,1732743038288,-401.74,9.999e-05,2]
[343597688,1732743038297,-500.0,9.999e-05,2]
[343597689,1732743038306,-500.0,9.999e-05,2]
[343597690,1732743038316,-500.0,9.999e-05,2]
[343597691,1732743038329,-500.0,9.999e-05,2]
[343597692,1732743038343,-232.43,9.999e-05,2]
[343597693,1732743038353,-500.0,9.999e-05,2]
[343597694,1732743038363,-583.47,9.999e-05,2]
[343597695,1732743038376,-500.0,9.999e-05,2]
[343597696,1732743038388,-543.97,9.999e-05,2]
[343597697,1732743038398,-500.0,9.999e-05,2]
[343597698,1732743038408,-545.79761375,9.999e-05,2]
[343597699,1732743038417,-500.0,9.999e-05,2]
[343597700,1732743038427,-500.0,9.999e-05,2]
[343597701,1732743038436,-531.26,9.999e-05,2]
[343597702,1732743038446,-500.0,9.999e-05,2]
[343597703,1732743038455,-500.0,9.999e-05,2]
[343597704,1732743038465,-500.0,9.999e-05,2]
[343597705,1732743038474,-500.0,9.999e-05,2]
[343597706,1732743038484,-500.0,9.999e-05,2]
[343597707,1732743038494,-500.0,9.999e-05,2]
[343597708,1732743038503,-566.39,9.999e-05,2]
[343597709,1732743038513,-500.0,9.999e-05,2]
[343597710,1732743038523,-623.23,9.999e-05,2]
[343597711,1732743038532,-500.0,9.999e-05,2]